fUST/lending_fUST_20240202
["ID","MTS","AMOUNT","RATE_DAILY","PERIOD"]
[313178399,1706887845861,-500.0,0.00027397,2]
[313178400,1706887845871,-500.0,0.00027397,2]
[313178401,1706887845880,-500.0,0.00027397,2]
[313178402,1706887845890,-501.48964606,0.00027397,2]
[313178403,1706887845899,-507.14192203,0.00027397,2]
[313178404,1706887845908,-500.0,0.00027397,2]
[313178405,1706887845918,-500.0,0.00027397,2]
[313178406,1706887845927,-500.0,0.00027397,2]
[313178407,1706887845937,-508.35909412,0.00027397,2]
[313178408,1706887845946,-500.0,0.00027397,2]
[313178409,1706887845956,-155.0,0.00027397,2]
[313178410,1706887845966,-500.0,0.00027397,2]
[313178411,1706887845975,-500.0,0.00027397,2]
[313178412,1706887845984,-500.0,0.00027397,2]
[313178413,1706887845993,-500.0,0.00027397,2]
[313178414,1706887846002,-500.0,0.00027397,2]
[313178415,1706887846012,-500.0,0.00027397,2]
[313178416,1706887846021,-500.0,0.00027397,2]
[313178418,1706887846030,-500.0,0.00027397,2]
[313178419,1706887846040,-500.0,0.00027397,2]
[313178420,1706887846053,-500.0,0.00027397,2]
[313178421,1706887846062,-500.0,0.00027397,2]
[313178422,1706887846070,-500.0,0.00027397,2]
[313178423,1706887846079,-500.0,0.00027397,2]
[313178425,1706887846091,-500.0,0.00027397,2]
[313178427,1706887846105,-500.0,0.00027397,2]
[313178428,1706887846119,-500.0,0.00027397,2]
[313178429,1706887846131,-500.0,0.00027397,2]
[313178430,1706887846143,-500.0,0.00027397,2]
[313178431,1706887846153,-500.0,0.00027397,2]
[313178432,1706887846163,-500.0,0.00027397,2]
[313178433,1706887846179,-151.0,0.00027397,2]
[313178434,1706887846191,-511.63986139,0.00027397,2]
[313178435,1706887846202,-500.0,0.00027397,2]
[313178437,1706887846214,-500.0,0.00027397,2]
[313178439,1706887846226,-512.14,0.00027397,2]
[313178440,1706887846238,-479.01556999,0.00027397,2]
[313178441,1706887846250,-227.726034,0.00027397,2]
[313178442,1706887846261,-500.0,0.00027397,2]
[313178443,1706887846270,-227.726034,0.00027397,2]
[313178444,1706887846281,-500.0,0.00027397,2]
[313178445,1706887846293,-500.0,0.00027397,2]
[313178446,1706887846306,-500.0,0.00027397,2]
[313178447,1706887846318,-500.0,0.00027397,2]
[313178449,1706887846328,-500.0,0.00027397,2]
[313178451,1706887846339,-500.0,0.00027397,2]
[313178452,1706887846352,-500.0,0.00027397,2]
[313178453,1706887846364,-500.0,0.00027397,2]
[313178454,1706887846376,-500.0,0.00027397,2]
[313178455,1706887846386,-500.0,0.00027397,2]
[313178456,1706887846396,-1173.29,0.00027397,2]
[313178457,1706887846406,-2078.44,0.00027397,2]
[313178458,1706887846420,-512.21503868,0.00027397,2]
[313178459,1706887846433,-500.0,0.00027397,2]
[313178460,1706887846445,-500.0,0.00027397,2]
[313178461,1706887846456,-500.0,0.00027397,2]
[313178462,1706887846468,-500.0,0.00027397,2]
[313178463,1706887846480,-4802.73,0.00027397,2]
[313178464,1706887846491,-1031.87,0.00027397,2]
[313178465,1706887846502,-500.0,0.00027397,2]
[313178466,1706887846515,-500.0,0.00027397,2]
[313178467,1706887846527,-500.0,0.00027397,2]
[313178468,1706887846539,-589.47,0.00027397,2]
[313178470,1706887846551,-500.0,0.00027397,2]
[313178471,1706887846563,-500.0,0.00027397,2]
[313178472,1706887846575,-500.0,0.00027397,2]
[313178473,1706887846587,-500.0,0.00027397,2]
[313178474,1706887846599,-500.0,0.00027397,2]
[313178475,1706887846611,-151.0,0.00027397,2]
[313178476,1706887846621,-1005.07,0.00027397,2]
[313178477,1706887846631,-500.0,0.00027397,2]
[313178478,1706887846641,-534.7,0.00027397,2]
[313178479,1706887846651,-467.36530748,0.00027397,2]
[313178480,1706887846662,-589.16,0.00027397,2]
[313178483,1706887846674,-500.0,0.00027397,2]
[313178485,1706887846685,-500.0,0.00027397,2]
[313178487,1706887846696,-579.09,0.00027397,2]
[313178489,1706887846706,-500.0,0.00027397,2]
[313178491,1706887846719,-151.0,0.00027397,2]
[313178493,1706887846729,-151.0,0.00027397,2]
[313178495,1706887846740,-3219.59,0.00027397,2]
[313178497,1706887846750,-500.0,0.00027397,2]
[313178498,1706887846760,-500.0,0.00027397,2]
[313178499,1706887846770,-500.0,0.00027397,2]
[313178500,1706887846780,-500.0,0.00027397,2]
[313178501,1706887846791,-500.0,0.00027397,2]
[313178502,1706887846802,-500.0,0.00027397,2]
[313178503,1706887846813,-500.0,0.00027397,2]
[313178504,1706887846824,-500.0,0.00027397,7]
[313178505,1706887846834,-500.0,0.00027397,2]
[313178506,1706887846845,-500.0,0.00027397,2]
[313178507,1706887846857,-500.0,0.00027397,2]
[313178508,1706887846868,-500.0,0.00027397,2]
[313178509,1706887846878,-500.0,0.00027397,2]
[313178510,1706887846889,-852.65,0.00027397,2]
[313178511,1706887846900,-500.0,0.00027397,2]
[313178512,1706887846911,-500.0,0.00027397,2]
[313178513,1706887846922,-500.0,0.00027397,2]
[313178514,1706887846932,-1279.07,0.00027397,2]
[313178515,1706887846943,-500.0,0.00027397,2]
[313178516,1706887846954,-500.0,0.00027397,2]
[313178517,1706887846965,-500.0,0.00027397,2]
[313178518,1706887846976,-500.0,0.00027397,2]
[313178519,1706887846987,-500.0,0.00027397,2]
[313178520,1706887846997,-500.0,0.00027397,2]
[313178521,1706887847008,-1093.15,0.00027397,2]
[313178522,1706887847019,-500.0,0.00027397,2]
[313178523,1706887847029,-7367.98,0.00027397,2]
[313178524,1706887847040,-500.0,0.00027397,2]
[313178525,1706887847051,-1383.14,0.00027397,2]
[313178526,1706887847063,-500.0,0.00027397,2]
[313178527,1706887847074,-500.0,0.00027397,2]
[313178528,1706887847084,-4408.3,0.00027397,2]
[313178529,1706887847095,-500.0,0.00027397,2]
[313178530,1706887847106,-500.0,0.00027397,2]
[313178531,1706887847117,-685.55,0.00027397,2]
[313178532,1706887847130,-708.56,0.00027397,2]
[313178533,1706887847140,-500.0,0.00027397,2]
[313178534,1706887847152,-500.0,0.00027397,2]
[313178535,1706887847163,-500.0,0.00027397,2]
[313178536,1706887847173,-500.0,0.00027397,2]
[313178537,1706887847185,-500.0,0.00027397,2]
[313178538,1706887847195,-500.0,0.00027397,2]
[313178539,1706887847206,-500.0,0.00027397,2]
[313178540,1706887847325,-500.0,0.00027397,2]
[313178541,1706887847338,-500.0,0.00027397,2]
[313178542,1706887847347,-515.74,0.00027397,2]
[313178543,1706887847358,-180.27461566,0.00027397,2]
[313178544,1706887847368,-630.86189239,0.00027403,2]
[313178545,1706887847377,-1000.0,0.00027503,2]
[313178546,1706887847387,-424.11181522,0.00027521,2]
[313178547,1706887847396,-1000.0,0.00027548,2]
[313178548,1706887847406,-1000.0,0.00027571,2]
[313178549,1706887847417,-1000.0,0.00027587,2]
[313178550,1706887847426,-1000.0,0.00027601,2]
[313178551,1706887847441,-1000.0,0.00027601,2]
[313178552,1706887847451,-460.53448266,0.00027622,3]
[313178553,1706887847460,-1000.0,0.00027622,2]
[313178554,1706887847471,-1000.0,0.00027628,2]
[313178555,1706887847480,-1000.0,0.0002765,2]
[313178556,1706887847490,-1000.0,0.00027663,2]
[313178557,1706887847500,-500.0,0.00027668,2]
[313178558,1706887847512,-500.0,0.0002767,2]
[313178559,1706887847521,-500.0,0.0002767,2]
[313178560,1706887847531,-500.0,0.0002767,2]
[313178561,1706887847541,-500.0,0.00027671,2]
[313178562,1706887847550,-408.89177542,0.00027671,2]
[313178563,1706887847561,-500.0,0.00027671,2]
[313178564,1706887847570,-500.0,0.00027671,2]
[313178565,1706887847580,-500.0,0.00027671,2]
[313178566,1706887847589,-500.0,0.00027671,2]
[313178567,1706887847600,-500.0,0.00027671,2]
[313178568,1706887847610,-1000.0,0.00027671,2]
[313178569,1706887847619,-259.31,0.00027671,2]
[313178570,1706887847629,-500.0,0.00027671,2]
[313178571,1706887847639,-500.0,0.00027671,2]
[313178572,1706887847649,-500.0,0.00027671,2]
[313178573,1706887847660,-162.83,0.00027671,2]
[313178574,1706887847669,-309.92,0.00027671,2]
[313178575,1706887847679,-266.99,0.00027671,2]
[313178576,1706887847690,-151.0,0.00027671,2]
[313178577,1706887847699,-227.726034,0.00027671,2]
[313178578,1706887847710,-227.726034,0.00027671,2]
[313178579,1706887847720,-459.62,0.00027671,2]
[313178580,1706887847730,-457.15,0.00027671,2]
[313178581,1706887847740,-366.14,0.00027671,2]
[313178582,1706887847749,-1173.29,0.00027671,2]
[313178583,1706887847759,-2078.44,0.00027671,2]
[313178584,1706887847770,-500.0,0.00027671,2]
[313178585,1706887847779,-500.0,0.00027671,2]
[313178586,1706887847789,-4802.73,0.00027671,2]
[313178587,1706887847798,-1031.87,0.00027671,2]
[313178588,1706887847808,-500.0,0.00027671,2]
[313178589,1706887847817,-500.0,0.00027671,2]
[313178590,1706887847828,-500.0,0.00027671,2]
[313178591,1706887847838,-151.0,0.00027671,2]
[313178592,1706887847848,-1005.07,0.00027671,2]
[313178593,1706887847859,-534.7,0.00027671,2]
[313178594,1706887847869,-500.0,0.00027671,2]
[313178595,1706887847878,-151.0,0.00027671,2]
[313178596,1706887847887,-3219.59,0.00027671,2]
[313178597,1706887847896,-300.81131424,0.00027671,2]
[313178598,1706887847905,-500.0,0.00027671,2]
[313178599,1706887847914,-500.0,0.00027671,2]
[313178600,1706887847923,-500.0,0.00027671,2]
[313178601,1706887847933,-852.65,0.00027671,2]
[313178602,1706887847942,-1279.07,0.00027671,2]
[313178603,1706887847951,-1093.15,0.00027671,2]
[313178604,1706887847961,-7367.98,0.00027671,2]
[313178605,1706887847971,-1383.14,0.00027671,2]
[313178606,1706887847980,-500.0,0.00027671,2]
[313178607,1706887847989,-4408.3,0.00027671,2]
[313178608,1706887847999,-685.55,0.00027671,2]
[313178609,1706887848008,-708.56,0.00027671,2]
[313178610,1706887848018,-302.15847408,0.00027671,2]
[313178611,1706887848027,-500.0,0.00027671,2]
[313178612,1706887848037,-500.0,0.00027671,2]
[313178613,1706887848046,-500.0,0.00027671,2]
[313178614,1706887848055,-180.09,0.00027671,2]
[313178615,1706887848065,-515.74,0.00027671,2]
[313178616,1706887848075,-1000.0,0.00027691,2]
[313178617,1706887848084,-1000.0,0.00027693,2]
[313178618,1706887848094,-1000.0,0.00027723,2]
[313178619,1706887848104,-1000.0,0.00027746,2]
[313178620,1706887848113,-1000.0,0.00027776,2]
[313178621,1706887848122,-500.0,0.00027898,2]
[313178622,1706887848131,-500.0,0.00027899,2]
[313178623,1706887848141,-500.0,0.00027899,2]
[313178624,1706887848151,-500.0,0.00027899,2]
[313178625,1706887848160,-151.0,0.00027899,2]
[313178626,1706887848169,-151.0,0.000279,2]
[313178627,1706887848179,-151.0,0.000279,2]
[313178628,1706887848188,-151.0,0.000279,2]
[313178629,1706887848198,-1000.0,0.00027941,2]
[313178630,1706887848207,-410.09777897,0.00027943,2]
[313178631,1706887848216,-348.80483862,0.00027943,2]
[313178632,1706887848226,-500.0,0.00027943,2]
[313178633,1706887848236,-500.0,0.00027943,2]
[313178634,1706887848246,-176.8932455,0.00027943,2]
[313178635,1706887848256,-500.0,0.00027943,2]
[313178636,1706887848266,-500.0,0.00027943,2]
[313178637,1706887848277,-500.0,0.00027943,2]
[313178638,1706887848288,-461.64278485,0.00027943,2]
[313178639,1706887848297,-500.0,0.00027943,2]
[313178640,1706887848308,-500.0,0.00027943,2]
[313178641,1706887848318,-500.0,0.00027943,2]
[313178642,1706887848328,-500.0,0.00027943,2]
[313178643,1706887848337,-500.0,0.00027944,2]
[313178644,1706887848346,-333.13,0.00027945,2]
[313178645,1706887848357,-500.0,0.00027945,2]
[313178646,1706887848367,-1000.0,0.00027945,2]
[313178647,1706887848376,-500.0,0.00027945,2]
[313178648,1706887848385,-500.0,0.00027945,2]
[313178649,1706887848394,-500.0,0.00027945,2]
[313178650,1706887848404,-151.0,0.00027945,2]
[313178651,1706887848413,-227.726034,0.00027945,2]
[313178652,1706887848422,-227.726034,0.00027945,2]
[313178653,1706887848432,-1173.29,0.00027945,2]
[313178654,1706887848444,-2078.44,0.00027945,2]
[313178655,1706887848453,-489.36,0.00027945,2]
[313178656,1706887848463,-500.0,0.00027945,2]
[313178657,1706887848472,-4802.73,0.00027945,2]
[313178658,1706887848482,-1031.87,0.00027945,2]
[313178659,1706887848491,-302.39,0.00027945,2]
[313178660,1706887848500,-500.0,0.00027945,2]
[313178661,1706887848510,-500.0,0.00027945,2]
[313178662,1706887848519,-151.0,0.00027945,2]
[313178663,1706887848528,-1005.07,0.00027945,2]
[313178664,1706887848537,-534.7,0.00027945,2]
[313178665,1706887848547,-500.0,0.00027945,2]
[313178666,1706887848556,-212.12,0.00027945,2]
[313178667,1706887848565,-3219.59,0.00027945,2]
[313178668,1706887848574,-500.0,0.00027945,2]
[313178669,1706887848583,-500.0,0.00027945,2]
[313178670,1706887848593,-500.0,0.00027945,2]
[313178671,1706887848606,-852.65,0.00027945,2]
[313178672,1706887848615,-1279.07,0.00027945,2]
[313178673,1706887848624,-1093.15,0.00027945,2]
[313178674,1706887848633,-7367.98,0.00027945,2]
[313178675,1706887848643,-1383.14,0.00027945,2]
[313178676,1706887848652,-343.61,0.00027945,2]
[313178677,1706887848662,-4408.3,0.00027945,2]
[313178678,1706887848671,-685.55,0.00027945,2]
[313178679,1706887848680,-708.56,0.00027945,2]
[313178680,1706887848690,-500.0,0.00027945,2]
[313178681,1706887848699,-419.18,0.00027945,2]
[313178682,1706887848707,-500.0,0.00027945,2]
[313178683,1706887848717,-515.74,0.00027945,2]
[313178684,1706887848726,-1590.56292143,0.00027963,2]
[313178685,1706887848736,-500.0,0.00027999,2]
[313178686,1706887848746,-500.0,0.00027999,2]
[313178687,1706887848755,-1678.69271924,0.00028,2]
[313178688,1706887848764,-600.0,0.00028,2]
[313178689,1706887848773,-600.0,0.00028,2]
[313178690,1706887848783,-201.20112353,0.00028,2]
[313178691,1706887848792,-155.0,0.00028,2]
[313178692,1706887848801,-154.98450155,0.00028,2]
[313178693,1706887848811,-3000.0,0.00028,7]
[313178694,1706887848821,-2500.0,0.00028,10]
[313178695,1706887848832,-16882.24009339,0.00028,2]
[313178696,1706887848908,-1385.83192117,0.00028,2]
[313178697,1706887848920,-43435.35486445,0.00028,2]
[313178698,1706887848929,-500.0,0.00028,5]
[313178699,1706887848938,-600.0,0.00028,2]
[313178700,1706887848947,-240.17907915,0.00028,2]
[313178701,1706887848956,-9224.99164332,0.00028,2]
[313178702,1706887848966,-3000.0,0.00028,2]
[313178703,1706887848977,-4772.9918761,0.00028,2]
[313178704,1706887848986,-126282.22344048,0.00028,14]
[313178705,1706887848996,-219.5482908,0.00028,7]
[313178706,1706887849005,-1000.0,0.00028,2]
[313178707,1706887849014,-1000.0,0.00028,28]
[313178708,1706887849023,-49955.0,0.00028,2]
[313178709,1706887849032,-2212.69531743,0.00028,20]
[313178710,1706887849041,-312.87729749,0.00028,2]
[313178711,1706887849053,-881.38990186,0.00028,3]
[313178712,1706887849062,-151.0,0.00028,2]
[313178713,1706887849071,-151.0,0.00028,2]
[313178714,1706887849080,-168.491098,0.00028,2]
[313178715,1706887849089,-227.726034,0.00028,2]
[313178716,1706887849098,-227.726034,0.00028,2]
[313178717,1706887849108,-227.726034,0.00028,2]
[313178718,1706887849117,-227.726034,0.00028,2]
[313178719,1706887849126,-227.726034,0.00028,2]
[313178720,1706887849136,-227.726034,0.00028,2]
[313178721,1706887849146,-227.726034,0.00028,2]
[313178722,1706887849156,-227.726034,0.00028,2]
[313178723,1706887849166,-151.0,0.00028,2]
[313178724,1706887849175,-162.062001,0.00028,2]
[313178725,1706887849185,-509.17923173,0.00028,2]
[313178726,1706887849194,-2920.14213704,0.00028,2]
[313178727,1706887849204,-1069.34287307,0.00028,2]
[313178728,1706887849363,-5218.9312891,0.00022028,2]
[313178729,1706887849373,-161.33857279,0.0002203,2]
[313178730,1706887849382,-2232.46013811,0.0002203,2]
[313178731,1706887849393,-915.71746682,0.0002203,2]
[313178732,1706887849405,-3054.77645107,0.0002203,2]
[313178761,1706888216660,251.00189063,0.00021909,2]
[313178762,1706888218602,251.00189062,0.0002191,2]
[313178763,1706888220539,251.00189062,0.00021911,2]
[313178764,1706888222597,251.00189062,0.00021912,2]
[313178765,1706888224590,251.00189062,0.00021913,2]
[313178766,1706888273938,199.56931104,0.00022,2]
[313178767,1706888274284,155.02790502,0.00022,2]
[313178768,1706888276731,639.74017804,0.00022,2]
[313178769,1706888278923,3752.26075738,0.00022,2]
[313178770,1706888279192,260.80238899,0.00022,2]
[313178771,1706888279252,278.5595293,0.00022,2]
[313178772,1706888279641,689.35318607,0.00022,2]
[313178774,1706888281434,7875.046286,0.00021006,2]
[313178775,1706888282366,523.0723444,0.00022,2]
[313178776,1706888283768,155.02790502,0.00022,2]
[313178777,1706888285749,5218.9312891,0.00022,2]
[313178778,1706888287992,963.72070029,0.00022,2]
[313178786,1706888469829,200.0,0.00023081,7]
[313178787,1706888496376,19436.02831608,0.00022,4]
[313178788,1706888508281,-15648.66868214,0.00020978,2]
[313178789,1706888508302,-7974.33759176,0.00020978,2]
[313178790,1706888508322,-1857.97900988,0.00020979,2]
[313178791,1706888508342,-261.59404657,0.00020979,2]
[313178792,1706888508362,-243.60640262,0.00020979,2]
[313178793,1706888508381,-322.06127261,0.00020979,2]
[313178794,1706888508403,-1244.61449288,0.0002098,2]
[313178795,1706888508424,-620.54726188,0.0002098,2]
[313178796,1706888508444,-523.0723444,0.00020981,2]
[313178797,1706888508464,-155.0294556,0.00020981,2]
[313178798,1706888508484,-18937.21380588,0.00020981,2]
[313178799,1706888508505,-278.5595293,0.00020982,2]
[313178800,1706888508525,-155.0294556,0.00020982,2]
[313178801,1706888508545,-3752.26075738,0.00020982,2]
[313178802,1706888508566,-4822.4959041,0.00020982,2]
[313178803,1706888508585,-3300.15012146,0.00020983,2]
[313178804,1706888508606,-1269.27132386,0.00020983,2]
[313178805,1706888508627,-19899.50040247,0.00020983,2]
[313178806,1706888508650,-199.56931104,0.00020983,2]
[313178807,1706888508671,-1295.94446577,0.00020984,2]
[313178808,1706888508692,-155.23228967,0.00020984,2]
[313178809,1706888508714,-5847.3829975,0.00020984,2]
[313178810,1706888508734,-589.48332957,0.00020984,2]
[313178811,1706888508754,-556.52643287,0.00020984,2]
[313178812,1706888508774,-913.301688,0.00020985,2]
[313178813,1706888508798,-83851.54700691,0.00020985,2]
[313178814,1706888508818,-166.06285159,0.00020986,2]
[313178815,1706888508838,-212.4169632,0.00020986,2]
[313178816,1706888508857,-18596.54080349,0.00020986,2]
[313178819,1706888518598,8131.68086837,0.00023,4]
[313178820,1706888528111,547.9,0.00020977,3]
[313178821,1706888534020,979.77178088,0.00018886,2]
[313178822,1706888537799,1470.98881785,0.00015738,2]
[313178823,1706888538783,456.58,0.00020977,3]
[313178824,1706888544369,665.1302979,0.00019984,2]
[313178826,1706888549186,380.49,0.00020974,3]
[313178828,1706888560185,317.07,0.00020974,3]
[313178830,1706888571456,264.23,0.00020966,3]
[313178831,1706888583480,220.19,0.00020966,3]
[313178835,1706888593752,183.49,0.00020966,3]
[313178839,1706888597887,-260.80238899,0.00020966,2]
[313178840,1706888597907,-2075.19761101,0.00020966,2]
[313178841,1706888604147,494.58,0.00020958,3]
[313178842,1706888604927,2715.47631265,0.00020965,5]
[313178843,1706888607143,155.0294556,0.00018887,3]
[313178844,1706888620927,1252.05296858,0.00020964,5]
[313178848,1706888625147,155.0294556,0.00018868,3]
[313178849,1706888626473,412.15,0.00020958,3]
[313178850,1706888627681,1357.50974369,0.00020966,5]
[313178851,1706888637472,343.46,0.00020957,3]
[313178852,1706888643159,155.0294556,0.00018868,3]
[313178853,1706888647678,636.34770581,0.00020957,5]
[313178854,1706888649186,286.22,0.00020954,3]
[313178856,1706888659587,238.51,0.00020954,3]
[313178857,1706888661165,155.0294556,0.00018868,3]
[313178858,1706888670915,198.76,0.0002095,3]
[313178859,1706888681244,155.0294556,0.00018886,3]
[313178860,1706888682626,165.63,0.0002095,3]
[313178861,1706888694108,828.2,0.0002095,3]
[313178862,1706888697174,155.0294556,0.00018861,3]
[313178863,1706888715206,155.0294556,0.00018861,3]
[313178864,1706888737179,155.0294556,0.00018861,3]
[313178867,1706888769928,200.0,0.00023042,7]
[313178880,1706888879538,151.02718489,0.0002874,30]
[313178884,1706888916362,24900.0,0.00019934,2]
[313178885,1706888976549,1000.557852,0.00019927,2]
[313178915,1706889031762,-1743.90819804,0.00020915,2]
[313178916,1706889031772,-2750.12510122,0.00020916,2]
[313178917,1706889031782,-500.0,0.00020916,2]
[313178918,1706889031792,-7974.33759176,0.00020916,2]
[313178919,1706889031802,-155.0294556,0.00020916,2]
[313178920,1706889031813,-651.3516216,0.00020916,2]
[313178921,1706889031822,-609.08979656,0.00020916,2]
[313178922,1706889031831,-589.48332957,0.00020917,2]
[313178923,1706889031842,-2042.80747063,0.00020917,2]
[313178924,1706889031851,-199.56931104,0.00020917,2]
[313178925,1706889031860,-155.0294556,0.00020917,2]
[313178926,1706889031869,-620.54726188,0.00020917,2]
[313178927,1706889031878,-3752.26075738,0.00020917,2]
[313178928,1706889031888,-1295.94446577,0.00020918,2]
[313178929,1706889031898,-689.35318607,0.00020918,2]
[313178930,1706889031906,-295.45050683,0.00020918,2]
[313178931,1706889031915,-155.23228967,0.00020918,2]
[313178932,1706889031925,-155.0294556,0.00020919,2]
[313178933,1706889031934,-212.4169632,0.00020919,2]
[313178934,1706889031943,-322.06127261,0.00020919,2]
[313178935,1706889031953,-20909.96703579,0.00020919,2]
[313178936,1706889031963,-243.60640262,0.0002092,2]
[313178937,1706889031972,-1269.27132386,0.0002092,2]
[313178938,1706889031981,-4822.4959041,0.0002092,2]
[313178939,1706889031991,-19736.655801,0.0002092,2]
[313178940,1706889032001,-3492.24028975,0.00020921,2]
[313178941,1706889032011,-1244.61449288,0.00020921,2]
[313178942,1706889032020,-37028.48161745,0.00020923,2]
[313178943,1706889032030,-12652.0,0.0002097,2]
[313178944,1706889032039,-253.59425912,0.00020984,2]
[313178945,1706889032048,-341.31785772,0.00020984,2]
[313178946,1706889032058,-261.00542305,0.00020985,2]
[313178947,1706889032067,-1855.98039572,0.00020985,2]
[313178948,1706889032076,-1750.08061671,0.00020985,2]
[313178949,1706889032085,-239.13961533,0.00020986,2]
[313178950,1706889032094,-15621.47236823,0.00020987,2]
[313178951,1706889032103,-219.22592694,0.00021893,2]
[313178952,1706889032113,-500.0,0.00021893,2]
[313178953,1706889032122,-500.0,0.00021893,2]
[313178954,1706889032131,-500.0,0.00021893,2]
[313178955,1706889032141,-456.82832043,0.00021893,2]
[313178956,1706889032150,-500.0,0.00021893,2]
[313178957,1706889032159,-175.53053005,0.00021893,2]
[313178958,1706889032169,-500.0,0.00021893,2]
[313178959,1706889032178,-500.0,0.00021893,2]
[313178960,1706889032188,-500.0,0.00021893,2]
[313178961,1706889032197,-500.0,0.00021893,2]
[313178962,1706889032206,-500.0,0.00021893,2]
[313178963,1706889032215,-500.0,0.00021893,2]
[313178964,1706889032225,-500.0,0.00021893,2]
[313178965,1706889032235,-500.0,0.00021893,2]
[313178966,1706889032244,-270.37448699,0.00021893,2]
[313178967,1706889032254,-11403.08540316,0.00021894,2]
[313178968,1706889032263,-3126.2267718,0.00021999,2]
[313178969,1706889032273,-189.57717888,0.00022,2]
[313178970,1706889032282,-279.31243468,0.00022,2]
[313178971,1706889032292,-1017.27536011,0.00022004,2]
[313178972,1706889032301,-159.09002618,0.00022004,2]
[313178973,1706889032310,-302.20397644,0.00022028,2]
[313178974,1706889032320,-156.0728962,0.00022029,2]
[313178975,1706889032329,-310.0,0.00022029,2]
[313178976,1706889032340,-1000.0,0.00022195,3]
[313178977,1706889032349,-1000.0,0.00022195,3]
[313178978,1706889032359,-1000.0,0.00022195,3]
[313178979,1706889032367,-1000.0,0.00022195,3]
[313178980,1706889032377,-1000.0,0.00022195,3]
[313178981,1706889032386,-1000.0,0.00022195,3]
[313178982,1706889032395,-1000.0,0.00022195,3]
[313178983,1706889032405,-422.66718412,0.00022195,3]
[313178984,1706889032414,-2646.40439276,0.00023017,2]
[313178985,1706889032424,-2088.61407986,0.00023081,2]
[313178986,1706889032433,-1651.04181906,0.00023081,2]
[313178987,1706889032442,-22828.77668066,0.00023081,2]
[313178988,1706889032452,-300.0,0.00023081,2]
[313178989,1706889032461,-343.73527458,0.00023081,2]
[313178990,1706889032470,-155.0356582,0.0002325,2]
[313178991,1706889032479,-9140.05527187,0.00023251,2]
[313178992,1706889032489,-2170.76312707,0.00023251,2]
[313178993,1706889032499,-21470.12708476,0.00023272,2]
[313178994,1706889032552,-10824.97051546,0.00023272,2]
[313178995,1706889032564,-2074.66999175,0.00023272,2]
[313178996,1706889032575,-3475.26283216,0.00023272,2]
[313179029,1706889039261,-562.60505917,0.00020915,2]
[313179030,1706889039270,-46.276291,0.00020915,2]
[313179031,1706889039282,-108.7531646,0.00020915,2]
[313179032,1706889039291,-155.09679277,0.00023079,2]
[313179033,1706889039300,-328.53648005,0.0002308,2]
[313179034,1706889039309,-363.374943,0.0002308,2]
[313179035,1706889039318,-1694.84689765,0.00023272,2]
[313179036,1706889039329,-1335.05746823,0.00023272,2]
[313179037,1706889039338,-5318.56916102,0.00023272,2]
[313179039,1706889039348,-801.22910976,0.00023896,2]
[313179041,1706889039357,-310.00620025,0.00024995,2]
[313179043,1706889039367,-149.64218265,0.00024995,2]
[313179046,1706889039379,-1440.04066369,0.00024995,2]
[313179048,1706889039388,-167.18166868,0.00024995,2]
[313179050,1706889039397,-151.0,0.00025375,2]
[313179052,1706889039406,-177.37802038,0.000259,2]